{"text_format":"3","workbook":"xlsx","n_sheets":12,"sheets":["1. Check-list","2. Université","3. Personne 1","4. Personne 2","5. Personne 3","6. Question 1","7. Question 2","8. Question 3","9. Statistiques","10. Fonds Universalité","Ctrl","Liste"],"read":"whole","date_system":"1900"}

{"sheet":"1. Check-list","index":0,"n_rows":19,"n_cols":3,"rows_kept":19,"merged":[[4,0,4,7],[5,0,5,7],[6,0,6,7],[7,0,7,7]]}
["Concours 2021 Jean-Pictet Competition - dossier de candidature"]
["Veuillez remplir les champs des neuf autres onglets de ce document, ce qui mettra automatiquement à jour la liste de contrôle ci-dessous. "]
["Ce document Excel doit être renvoyé, une fois complété, à christophe@concourspictet.org, accompagné de cinq documents :"]
["- trois CV, soit un CV sans photo pour chaque membre ;"]
["- un certificat signé et scanné de l'Université, à rédiger sur la base du modèle disponible sur"]
["https://www.concourspictet.org/docs/certif_uni_fr_template.dotx"]
["- un certificat signé par les trois candidats et scanné, à rédiger sur la base du modèle disponible sur"]
["https://www.concourspictet.org/docs/certif_partic_fr_template.dotx"]
[]
["Information sur l'Université (onglet 2)",{"$f":"IF(OR('2. Université'!B3=\"\",'2. Université'!B4=\"\",'2. Université'!B5=\"\",'2. Université'!B7=\"\",'2. Université'!B8=\"\",'2. Université'!B9=\"\",'2. Université'!B10=\"\",'2. Université'!B12=\"\",'2. Université'!B13=\"\",'2. Université'!B14=\"\"),\"Information manquante\",\"OK\")","v":"Information manquante"},{"$f":"Ctrl!H5","v":""}]
["Choix de l'édition (onglet 2)",{"$f":"Ctrl!E11&Ctrl!E12&Ctrl!E13&Ctrl!E14&Ctrl!E15&Ctrl!E16&Ctrl!E17&Ctrl!E18&Ctrl!E19&Ctrl!E20&Ctrl!E21&Ctrl!E22&Ctrl!E23&Ctrl!E24&Ctrl!E25&Ctrl!E26&Ctrl!E27","v":"35e édition (Albanie) ou 36e édition (Indonésie), pas de préférence"}]
["Information sur la personne 1 (onglet 3)",{"$f":"IF(OR('3. Personne 1'!B2=\"\",'3. Personne 1'!B4=\"\",'3. Personne 1'!B5=\"\",'3. Personne 1'!B6=\"\",'3. Personne 1'!C6=\"\",'3. Personne 1'!D6=\"\",'3. Personne 1'!B7=\"\",'3. Personne 1'!B9=\"\",'3. Personne 1'!B10=\"\"),\"Information manquante\",\"OK\")","v":"Information manquante"},{"$f":"Ctrl!E2&Ctrl!H2","v":""}]
["Information sur la personne 2 (onglet 4)",{"$f":"IF(OR('4. Personne 2'!B2=\"\",'4. Personne 2'!B4=\"\",'4. Personne 2'!B5=\"\",'4. Personne 2'!B6=\"\",'4. Personne 2'!C6=\"\",'4. Personne 2'!D6=\"\",'4. Personne 2'!B7=\"\",'4. Personne 2'!B9=\"\",'4. Personne 2'!B10=\"\"),\"Information manquante\",\"OK\")","v":"Information manquante"},{"$f":"Ctrl!E3&Ctrl!H3","v":""}]
["Information sur la personne 3 (onglet 5)",{"$f":"IF(OR('5. Personne 3'!B2=\"\",'5. Personne 3'!B4=\"\",'5. Personne 3'!B5=\"\",'5. Personne 3'!B6=\"\",'5. Personne 3'!C6=\"\",'5. Personne 3'!D6=\"\",'5. Personne 3'!B7=\"\",'5. Personne 3'!B9=\"\",'5. Personne 3'!B10=\"\"),\"Information manquante\",\"OK\")","v":"Information manquante"},{"$f":"Ctrl!E4&Ctrl!H4","v":""}]
["Nombre de mots question 1 (onglet 6)",{"$f":"IF('6. Question 1'!A4<>\"\",(LEN('6. Question 1'!A4)-LEN(SUBSTITUTE('6. Question 1'!A4,\" \",\"\"))+1),0)","v":0}]
["Nombre de mots question 2 (onglet 7)",{"$f":"IF('7. Question 2'!A4<>\"\",(LEN('7. Question 2'!A4)-LEN(SUBSTITUTE('7. Question 2'!A4,\" \",\"\"))+1),0)","v":0}]
["Nombre de mots question 3 (onglet 8)",{"$f":"IF('8. Question 3'!A3<>\"\",(LEN('8. Question 3'!A3)-LEN(SUBSTITUTE('8. Question 3'!A3,\" \",\"\"))+1),0)","v":0}]
["Statistiques (onglet 9)",{"$f":"IF(OR('9. Statistiques'!A4=\"\",'9. Statistiques'!A6=\"\",'9. Statistiques'!A8=\"\"),\"Information manquante\",\"OK\")","v":"Information manquante"}]
["Fonds de l'Universalité (onglet 10)",{"$f":"IF(OR('10. Fonds Universalité'!A4=\"\",'10. Fonds Universalité'!A7=\"\",'10. Fonds Universalité'!A10=\"\"),\"Pas de demande complète\",\"Demande faite\")","v":"Pas de demande complète"}]

{"sheet":"2. Université","index":1,"n_rows":14,"n_cols":2,"rows_kept":14}
["Information sur l'équipe"]
["L'Université"]
["Pays"]
["Ville"]
["Nom de l'Université"]
["La personne en charge de l'équipe"]
["Nom"]
["Fonction (Professeur-e, Doyen-ne…)"]
["E-mail "]
["Téléphone"]
["Choix de l'édition"]
["Participer à la 35e édition (Albanie) est...","Possible (dérouler si nécessaire)"]
["Participer à la 36e édition  (Indonésie) est...","Possible (dérouler si nécessaire)"]
["Préférence (le cas échéant)","Pas de préférence (dérouler si nécessaire)"]

{"sheet":"3. Personne 1","index":2,"n_rows":10,"n_cols":1,"rows_kept":10}
["Personne 1"]
["Prénom"]
["Prénom d'usage (le cas échéant)"]
["Nom de famille"]
["Genre"]
["Date de naissance"]
["Nationalité"]
["Deuxième nationality (optionnel)"]
["Email"]
["Téléphone"]

{"sheet":"4. Personne 2","index":3,"n_rows":10,"n_cols":1,"rows_kept":10}
["Personne 2"]
["Prénom"]
["Prénom d'usage (le cas échéant)"]
["Nom de famille"]
["Genre"]
["Date de naissance"]
["Nationalité"]
["Deuxième nationality (optionnel)"]
["Email"]
["Téléphone"]

{"sheet":"5. Personne 3","index":4,"n_rows":10,"n_cols":1,"rows_kept":10}
["Personne 3"]
["Prénom"]
["Prénom d'usage (le cas échéant)"]
["Nom de famille"]
["Genre"]
["Date de naissance"]
["Nationalité"]
["Deuxième nationality (optionnel)"]
["Email"]
["Téléphone"]

{"sheet":"6. Question 1","index":5,"n_rows":3,"n_cols":1,"rows_kept":3}
["Question 1"]
["Attention à ne pas dépasser le nombre maximum de mots et à ne rien indiquer (nom de l'Université, noms des candidat-e-s...) qui permettrait d'identifier les réponses aux questions 1 et 2 : elles sont évaluées de manière anonyme."]
["Quel est le seuil pour qu'un groupe constitue un «groupe armé», et donc une partie au conflit, en Droit international humanitaire ? Tout groupe structuré avec un chef, tel qu'un clan ou une famille, contrôlant un territoire tel qu'un village, peut-il être un groupe armé partie à un conflit armé en vertu du Droit international humanitaire ? (1000 mots maximum)"]

{"sheet":"7. Question 2","index":6,"n_rows":3,"n_cols":1,"rows_kept":3}
["Question 2"]
["Attention à ne pas dépasser le nombre maximum de mots et à ne rien indiquer (nom de l'Université, noms des candidat-e-s...) qui permettrait d'identifier les réponses aux questions 1 et 2 : elles sont évaluées de manière anonyme."]
["Question 2 : Vous êtes Conseiller juridique des Forces armées de la Bladurie. Le Colonel Jeronimar VIDOC vous demande de rédiger un document de 1000 mots maximum pour expliquer clairement et simplement aux soldats du rang qui vont partir en opérations pourquoi il existe un droit de tuer en Droit international humanitaire. Rédigez ce document dans le champ ci-dessous."]

{"sheet":"8. Question 3","index":7,"n_rows":2,"n_cols":1,"rows_kept":2}
["Question 3"]
["Question 3 : Pourquoi votre équipe devrait-elle être choisie pour participer au Concours Jean-Pictet 2021 ? (1000 mots maximum)"]

{"sheet":"9. Statistiques","index":8,"n_rows":7,"n_cols":1,"rows_kept":7}
["Statistiques"]
["Cette partie permet de mesurer le soutien apporté aux équipes par leur établissement. Les réponses ne sont pas prises en compte dans la sélection des équipes ; \nelles sont cependant très précieuses pour le Comité pour le Concours Jean-Pictet en vue de l’analyse de l’impact du Concours et des moyens à fournir aux équipes."]
["1. Si votre équipe est sélectionnée, qui financera vos droits d'inscription ?"]
[]
["2. Si votre équipe est sélectionnée, qui financera vos frais de voyage ?"]
[]
["3. Quels sont les moyens mis à votre disposition pour aider à la préparation de l’équipe, tels que l’assistance d’un-e enseignant-e, d’un-e ancienn-e participant-e, etc. ?"]

{"sheet":"10. Fonds Universalité","index":9,"n_rows":9,"n_cols":1,"rows_kept":9}
["Demande de soutien du Fonds de l’Universalité"]
["Cette partie doit être remplie SEULEMENT SI vous souhaitez obtenir du soutien du Fonds de l’Universalité et que vous remplissez les critères énoncés dans le Règlement du Concours. Aucune demande ultérieure ne sera prise en considération."]
["1. Motivation de votre demande"]
[]
["2. Détails de votre budget "]
["(Merci de détailler votre budget autant que possible, en vous référant à la définition des dépenses éligibles selon le Règlement. Nous vous rappelons que les frais d’hébergement en pension complète – à partir du premier jour du Concours au soir jusqu’au \ndernier jour au matin – sont couverts par l’organisation)."]
[]
["3. Sources de financement identifiées "]
["(Merci d’inclure le plus possible de détails, y compris les montants que vous avez obtenus ou pensez pouvoir obtenir)."]

{"sheet":"Ctrl","index":10,"n_rows":27,"n_cols":8,"rows_kept":27,"hidden":true}
[null,"Month birth","DOB","Age","Msg Age","Email includes @","Email includes .","Msg Email"]
["Participant 1",{"$f":"IF('3. Personne 1'!C6=\"January\",1,\"\")&IF('3. Personne 1'!C6=\"February\",2,\"\")&IF('3. Personne 1'!C6=\"March\",3,\"\")&IF('3. Personne 1'!C6=\"April\",4,\"\")&IF('3. Personne 1'!C6=\"May\",5,\"\")&IF('3. Personne 1'!C6=\"June\",6,\"\")&IF('3. Personne 1'!C6=\"July\",7,\"\")&IF('3. Personne 1'!C6=\"August\",8,\"\")&IF('3. Personne 1'!C6=\"September\",9,\"\")&IF('3. Personne 1'!C6=\"October\",10,\"\")&IF('3. Personne 1'!C6=\"November\",11,\"\")&IF('3. Personne 1'!C6=\"December\",12,\"\")","v":""},{"$f":"DATE('3. Personne 1'!D6,B2,'3. Personne 1'!B6)","v":{"$error":"#VALUE!"}},{"$f":"DATEDIF(C2,TODAY(),\"y\")","v":{"$error":"#VALUE!"}},{"$f":"IF(ISERROR(D2),\"\",IF(D2<18,\"Participant 1 seems to be under 18. Please check the date of birth. \",\"\")&IF(D2>30,\"La personne 1 semble être âgée de plus de 30 ans, une demande de dérogation est donc nécessaire. \",\"\"))","v":""},{"$f":"IF('3. Personne 1'!B9=\"\",\"OK\",IF(SEARCH(\"@\",'3. Personne 1'!B9)>0,\"OK\",\"Pb\"))","v":"OK"},{"$f":"IF('3. Personne 1'!B9=\"\",\"OK\",IF(SEARCH(\".\",'3. Personne 1'!B9)>0,\"OK\",\"Pb\"))","v":"OK"},{"$f":"IF(OR(ISERROR(F2),ISERROR(G2)),\"Le format de l'adresse électronique de la personne 1 semble erroné.\",\"\")","v":""}]
["Participant 2",{"$f":"IF('4. Personne 2'!C6=\"January\",1,\"\")&IF('4. Personne 2'!C6=\"February\",2,\"\")&IF('4. Personne 2'!C6=\"March\",3,\"\")&IF('4. Personne 2'!C6=\"April\",4,\"\")&IF('4. Personne 2'!C6=\"May\",5,\"\")&IF('4. Personne 2'!C6=\"June\",6,\"\")&IF('4. Personne 2'!C6=\"July\",7,\"\")&IF('4. Personne 2'!C6=\"August\",8,\"\")&IF('4. Personne 2'!C6=\"September\",9,\"\")&IF('4. Personne 2'!C6=\"October\",10,\"\")&IF('4. Personne 2'!C6=\"November\",11,\"\")&IF('4. Personne 2'!C6=\"December\",12,\"\")","v":""},{"$f":"DATE('4. Personne 2'!D6,B3,'4. Personne 2'!B6)","v":{"$error":"#VALUE!"}},{"$f":"DATEDIF(C3,TODAY(),\"y\")","v":{"$error":"#VALUE!"}},{"$f":"IF(ISERROR(D3),\"\",IF(D3<18,\"La personne 2 semble avoir moins de 18 ans. Merci de vérifier la date de naissance. \",\"\")&IF(D3>30,\"La personne 2 semble être âgée de plus de 30 ans, une demande de dérogation est donc nécessaire. \",\"\"))","v":""},{"$f":"IF('4. Personne 2'!B9=\"\",\"OK\",IF(SEARCH(\"@\",'4. Personne 2'!B9)>0,\"OK\",\"Pb\"))","v":"OK"},{"$f":"IF('4. Personne 2'!B9=\"\",\"OK\",IF(SEARCH(\".\",'4. Personne 2'!B9)>0,\"OK\",\"Pb\"))","v":"OK"},{"$f":"IF(OR(ISERROR(F3),ISERROR(G3)),\"Le format de l'adresse électronique de la personne 2 semble erroné.\",\"\")","v":""}]
["Participant 3",{"$f":"IF('5. Personne 3'!C6=\"January\",1,\"\")&IF('5. Personne 3'!C6=\"February\",2,\"\")&IF('5. Personne 3'!C6=\"March\",3,\"\")&IF('5. Personne 3'!C6=\"April\",4,\"\")&IF('5. Personne 3'!C6=\"May\",5,\"\")&IF('5. Personne 3'!C6=\"June\",6,\"\")&IF('5. Personne 3'!C6=\"July\",7,\"\")&IF('5. Personne 3'!C6=\"August\",8,\"\")&IF('5. Personne 3'!C6=\"September\",9,\"\")&IF('5. Personne 3'!C6=\"October\",10,\"\")&IF('5. Personne 3'!C6=\"November\",11,\"\")&IF('5. Personne 3'!C6=\"December\",12,\"\")","v":""},{"$f":"DATE('5. Personne 3'!D6,B4,'5. Personne 3'!B6)","v":{"$error":"#VALUE!"}},{"$f":"DATEDIF(C4,TODAY(),\"y\")","v":{"$error":"#VALUE!"}},{"$f":"IF(ISERROR(D4),\"\",IF(D4<18,\"La personne 3 semble avoir moins de 18 ans. Merci de vérifier la date de naissance. \",\"\")&IF(D4>30,\"La personne 3 semble être âgée de plus de 30 ans, une demande de dérogation est donc nécessaire. \",\"\"))","v":""},{"$f":"IF('5. Personne 3'!B9=\"\",\"OK\",IF(SEARCH(\"@\",'5. Personne 3'!B9)>0,\"OK\",\"Pb\"))","v":"OK"},{"$f":"IF('5. Personne 3'!B9=\"\",\"OK\",IF(SEARCH(\".\",'5. Personne 3'!B9)>0,\"OK\",\"Pb\"))","v":"OK"},{"$f":"IF(OR(ISERROR(F4),ISERROR(G4)),\"Le format de l'adresse électronique de la personne 3 semble erroné.\",\"\")","v":""}]
["University",{"$nulls":4},{"$f":"IF('2. Université'!B9=\"\",\"OK\",IF(SEARCH(\"@\",'2. Université'!B9)>0,\"OK\",\"Pb\"))","v":"OK"},{"$f":"IF('2. Université'!B9=\"\",\"OK\",IF(SEARCH(\".\",'2. Université'!B9)>0,\"OK\",\"Pb\"))","v":"OK"},{"$f":"IF(OR(ISERROR(F5),ISERROR(G5)),\"Le format de l'adresse électronique de l'Université semble erroné.\",\"\")","v":""}]
[]
[]
[]
["Choice of session"]
["35th","36th","Preference","Message","Choice"]
[{"$nulls":3},"Vous devez sélectionner au moins une édition.",{"$f":"IF(OR('2. Université'!B$12=A11,'2. Université'!B$13=B11),D11,\"\")","v":""}]
[{"$f":"Liste!$E$3","v":"Impossible (dérouler si nécessaire)"},{"$f":"Liste!$E$3","v":"Impossible (dérouler si nécessaire)"},null,"Vous devez sélectionner au moins une édition.",{"$f":"IF(AND('2. Université'!B$12=A12,'2. Université'!B$13=B12,'2. Université'!B$14=C12),D12,\"\")","v":""}]
[{"$f":"Liste!$E$3","v":"Impossible (dérouler si nécessaire)"},{"$f":"Liste!$E$3","v":"Impossible (dérouler si nécessaire)"},{"$f":"Liste!$F$3","v":"35e édition (Albanie)"},"Vous devez sélectionner au moins une édition.",{"$f":"IF(AND('2. Université'!B$12=A13,'2. Université'!B$13=B13,'2. Université'!B$14=C13),D13,\"\")","v":""}]
[{"$f":"Liste!$E$3","v":"Impossible (dérouler si nécessaire)"},{"$f":"Liste!$E$3","v":"Impossible (dérouler si nécessaire)"},{"$f":"Liste!$F$4","v":"36e édition (Indonésie)"},"Vous devez sélectionner au moins une édition.",{"$f":"IF(AND('2. Université'!B$12=A14,'2. Université'!B$13=B14,'2. Université'!B$14=C14),D14,\"\")","v":""}]
[{"$f":"Liste!$E$3","v":"Impossible (dérouler si nécessaire)"},{"$f":"Liste!$E$3","v":"Impossible (dérouler si nécessaire)"},{"$f":"Liste!$F$2","v":"Pas de préférence (dérouler si nécessaire)"},"Vous devez sélectionner au moins une édition.",{"$f":"IF(AND('2. Université'!B$12=A15,'2. Université'!B$13=B15,'2. Université'!B$14=C15),D15,\"\")","v":""}]
[{"$f":"Liste!$E$2","v":"Possible (dérouler si nécessaire)"},{"$f":"Liste!$E$3","v":"Impossible (dérouler si nécessaire)"},null,"35e édition (Albanie)",{"$f":"IF(AND('2. Université'!B$12=A16,'2. Université'!B$13=B16,'2. Université'!B$14=C16),D16,\"\")","v":""}]
[{"$f":"Liste!$E$2","v":"Possible (dérouler si nécessaire)"},{"$f":"Liste!$E$3","v":"Impossible (dérouler si nécessaire)"},{"$f":"Liste!$F$3","v":"35e édition (Albanie)"},"35e édition (Albanie)",{"$f":"IF(AND('2. Université'!B$12=A17,'2. Université'!B$13=B17,'2. Université'!B$14=C17),D17,\"\")","v":""}]
[{"$f":"Liste!$E$2","v":"Possible (dérouler si nécessaire)"},{"$f":"Liste!$E$3","v":"Impossible (dérouler si nécessaire)"},{"$f":"Liste!$F$4","v":"36e édition (Indonésie)"},"Merci de vérifier votre choix dans l'onglet 2.",{"$f":"IF(AND('2. Université'!B$12=A18,'2. Université'!B$13=B18,'2. Université'!B$14=C18),D18,\"\")","v":""}]
[{"$f":"Liste!$E$2","v":"Possible (dérouler si nécessaire)"},{"$f":"Liste!$E$3","v":"Impossible (dérouler si nécessaire)"},{"$f":"Liste!$F$2","v":"Pas de préférence (dérouler si nécessaire)"},"35e édition (Albanie)",{"$f":"IF(AND('2. Université'!B$12=A19,'2. Université'!B$13=B19,'2. Université'!B$14=C19),D19,\"\")","v":""}]
[{"$f":"Liste!$E$3","v":"Impossible (dérouler si nécessaire)"},{"$f":"Liste!$E$2","v":"Possible (dérouler si nécessaire)"},null,"36e édition (Indonésie)",{"$f":"IF(AND('2. Université'!B$12=A20,'2. Université'!B$13=B20,'2. Université'!B$14=C20),D20,\"\")","v":""}]
[{"$f":"Liste!$E$3","v":"Impossible (dérouler si nécessaire)"},{"$f":"Liste!$E$2","v":"Possible (dérouler si nécessaire)"},{"$f":"Liste!$F$3","v":"35e édition (Albanie)"},"Merci de vérifier votre choix dans l'onglet 2.",{"$f":"IF(AND('2. Université'!B$12=A21,'2. Université'!B$13=B21,'2. Université'!B$14=C21),D21,\"\")","v":""}]
[{"$f":"Liste!$E$3","v":"Impossible (dérouler si nécessaire)"},{"$f":"Liste!$E$2","v":"Possible (dérouler si nécessaire)"},{"$f":"Liste!$F$4","v":"36e édition (Indonésie)"},"36e édition (Indonésie)",{"$f":"IF(AND('2. Université'!B$12=A22,'2. Université'!B$13=B22,'2. Université'!B$14=C22),D22,\"\")","v":""}]
[{"$f":"Liste!$E$3","v":"Impossible (dérouler si nécessaire)"},{"$f":"Liste!$E$2","v":"Possible (dérouler si nécessaire)"},{"$f":"Liste!$F$2","v":"Pas de préférence (dérouler si nécessaire)"},"36e édition (Indonésie)",{"$f":"IF(AND('2. Université'!B$12=A23,'2. Université'!B$13=B23,'2. Université'!B$14=C23),D23,\"\")","v":""}]
[{"$f":"Liste!$E$2","v":"Possible (dérouler si nécessaire)"},{"$f":"Liste!$E$2","v":"Possible (dérouler si nécessaire)"},null,"35e édition (Albanie) ou 36e édition (Indonésie), pas de préférence",{"$f":"IF(AND('2. Université'!B$12=A24,'2. Université'!B$13=B24,'2. Université'!B$14=C24),D24,\"\")","v":""}]
[{"$f":"Liste!$E$2","v":"Possible (dérouler si nécessaire)"},{"$f":"Liste!$E$2","v":"Possible (dérouler si nécessaire)"},{"$f":"Liste!$F$3","v":"35e édition (Albanie)"},"Les deux éditions sont possibles, préférence pour Albanie (35e édition)",{"$f":"IF(AND('2. Université'!B$12=A25,'2. Université'!B$13=B25,'2. Université'!B$14=C25),D25,\"\")","v":""}]
[{"$f":"Liste!$E$2","v":"Possible (dérouler si nécessaire)"},{"$f":"Liste!$E$2","v":"Possible (dérouler si nécessaire)"},{"$f":"Liste!$F$4","v":"36e édition (Indonésie)"},"Les deux éditions sont possibles, préférence pour Indonésie (36e édition)",{"$f":"IF(AND('2. Université'!B$12=A26,'2. Université'!B$13=B26,'2. Université'!B$14=C26),D26,\"\")","v":""}]
[{"$f":"Liste!$E$2","v":"Possible (dérouler si nécessaire)"},{"$f":"Liste!$E$2","v":"Possible (dérouler si nécessaire)"},{"$f":"Liste!$F$2","v":"Pas de préférence (dérouler si nécessaire)"},"35e édition (Albanie) ou 36e édition (Indonésie), pas de préférence",{"$f":"IF(AND('2. Université'!B$12=A27,'2. Université'!B$13=B27,'2. Université'!B$14=C27),D27,\"\")","v":"35e édition (Albanie) ou 36e édition (Indonésie), pas de préférence"}]

{"sheet":"Liste","index":11,"n_rows":200,"n_cols":7,"rows_kept":200,"hidden":true}
[]
["Afghanistan",1,"janvier",1980,"Possible (dérouler si nécessaire)","Pas de préférence (dérouler si nécessaire)","Femme"]
["Afrique du Sud",2,"février",1981,"Impossible (dérouler si nécessaire)","35e édition (Albanie)","Homme"]
["Albanie",3,"mars",1982,null,"36e édition (Indonésie)","Autre choix"]
["Algérie",4,"avril",1983]
["Allemagne",5,"mai",1984]
["Andorre",6,"juin",1985]
["Angola",7,"juillet",1986]
["Antigua-et-Barbuda",8,"août",1987]
["Arabie saoudite",9,"septembre",1988]
["Argentine",10,"octobre",1989]
["Arménie",11,"novembre",1990]
["Australie",12,"décembre",1991]
["Autriche",13,null,1992]
["Azerbaïdjan",14,null,1993]
["Bahamas",15,null,1994]
["Bahreïn",16,null,1995]
["Bangladesh",17,null,1996]
["Barbade",18,null,1997]
["Bélarus",19,null,1998]
["Belgique",20,null,1999]
["Belize",21,null,2000]
["Bénin",22,null,2001]
["Bhoutan",23,null,2002]
["Bolivie (État plurinational de)",24,null,2003]
["Bosnie-Herzégovine",25,null,2004]
["Botswana",26]
["Brésil",27]
["Brunei Darussalam",28]
["Bulgarie",29]
["Burkina Faso",30]
["Burundi",31]
["Cabo Verde (République de)"]
["Cambodge"]
["Cameroun"]
["Canada"]
["Chili"]
["Chine"]
["Chypre"]
["Colombie"]
["Comores"]
["Congo"]
["Costa Rica"]
["Côte D'Ivoire"]
["Croatie"]
["Cuba"]
["Danemark"]
["Djibouti"]
["Dominique"]
["Égypte"]
["El Salvador"]
["Émirats arabes unis"]
["Équateur"]
["Érythrée"]
["Espagne"]
["Estonie"]
["Eswatini"]
["États-Unis d'Amérique"]
["Éthiopie"]
["Fédération de Russie"]
["Fidji"]
["Finlande"]
["France"]
["Gabon"]
["Gambie (République de)"]
["Géorgie"]
["Ghana"]
["Grèce"]
["Grenade"]
["Guatemala"]
["Guinée"]
["Guinée Bissau"]
["Guinée équatoriale"]
["Guyana"]
["Haïti"]
["Honduras"]
["Hongrie"]
["Îles Cook"]
["Îles Marshall"]
["Îles Salomon"]
["Inde"]
["Indonésie"]
["Iran (République islamique d')"]
["Iraq"]
["Irlande"]
["Islande"]
["Israël"]
["Italie"]
["Jamaïque"]
["Japon"]
["Jordanie"]
["Kazakhstan"]
["Kenya"]
["Kirghizistan"]
["Kiribati"]
["Kosovo"]
["Koweït"]
["Lesotho"]
["Lettonie"]
["Liban"]
["Libéria"]
["Libye"]
["Liechtenstein"]
["Lituanie"]
["Luxembourg"]
["Macédoine du Nord"]
["Madagascar"]
["Malaisie"]
["Malawi"]
["Maldives"]
["Mali"]
["Malte"]
["Maroc"]
["Maurice"]
["Mauritanie"]
["Mexique"]
["Micronésie (États fédérés de)"]
["Monaco"]
["Mongolie"]
["Monténégro"]
["Mozambique"]
["Myanmar"]
["Namibie"]
["Nauru"]
["Népal"]
["Nicaragua"]
["Niger"]
["Nigéria"]
["Niue"]
["Norvège"]
["Nouvelle-Zélande"]
["Oman"]
["Ouganda"]
["Ouzbékistan"]
["Pakistan"]
["Palaos"]
["Palestine"]
["Panama"]
["Papouasie-Nouvelle-Guinée"]
["Paraguay"]
["Pays-Bas"]
["Pérou"]
["Philippines"]
["Pologne"]
["Portugal"]
["Qatar"]
["République arabe syrienne"]
["République centrafricaine"]
["République de Corée"]
["République de Moldova"]
["République démocratique du Congo"]
["République démocratique populaire lao"]
["République dominicaine"]
["République populaire démocratique de Corée"]
["République tchèque"]
["République-Unie de Tanzanie"]
["Roumanie"]
["Royaume-Uni de Grande-Bretagne et d'Irlande du Nord"]
["Rwanda"]
["Saint-Kitts-et-Nevis"]
["Saint-Marin"]
["Saint-Siège"]
["Saint-Vincent-et-les Grenadines"]
["Sainte-Lucie"]
["Samoa"]
["Sao Tomé-et-Principe"]
["Sénégal"]
["Serbie"]
["Seychelles"]
["Sierra Leone"]
["Singapour"]
["Slovaquie"]
["Slovénie"]
["Somalie"]
["Soudan"]
["Soudan du Sud"]
["Sri Lanka"]
["Suède"]
["Suisse"]
["Suriname"]
["Tadjikistan"]
["Taïwan"]
["Tchad"]
["Thaïlande"]
["Timor-Leste"]
["Togo"]
["Tonga"]
["Trinité-et-Tobago"]
["Tunisie"]
["Turkménistan"]
["Turquie"]
["Tuvalu"]
["Ukraine"]
["Uruguay"]
["Vanuatu"]
["Venezuela (République bolivarienne du)"]
["Viet Nam"]
["Yémen"]
["Zambie"]
["Zimbabwe"]